Workbook

Sheet Общая информация
A1: Наименование организации: | E1: Муниципальное бюджетное учреждение дополнительного образования Центр творчества "Радуга" муниципального образования Тимашевский район
A4: СГОЗ (общий) | C4: 0 | E4: п.4 (10% от СГОЗ или 2 000 000) | H4: 0 | L4: п.5 (50% СГОЗ) | M4: 0
A5: СГОЗ (остаток) | C5: =C4-G15+J15 -> -1674225.48 | E5: п.4 (остаток) | H5: =H4-G12 -> -1686688.23 | L5: п.5 (остаток) | M5: =M4-G13 -> 0
A8: Способ определения поставщика (подрядчика, исполнителя) | D8: Начальная (максимальная) цена контракта | G8: Фактическая цена контракта | J8: Расторжение контракта по соглашению сторон | M8: Экономия
A9: Состоявшиеся аукционы | D9: ='Состоявшиеся аукционы'!G2 -> 0 | G9: ='Состоявшиеся аукционы'!Q2 -> 0 | J9: ='Состоявшиеся аукционы'!AB2 -> 0 | M9: =D9-G9 -> 0
A10: Несостоявшиеся аукционы | D10: ='Несостоявшиеся аукционы'!G2 -> 0 | G10: ='Несостоявшиеся аукционы'!Q2 -> 0 | J10: ='Несостоявшиеся аукционы'!AB2 -> 0 | M10: 0
A11: Иные конкурентные закупки | D11: ='Иные конкурентные закупки'!G2 -> 0 | G11: ='Иные конкурентные закупки'!Q2 -> 0 | J11: ='Иные конкурентные закупки'!AB2 -> 0 | M11: 0
A12: Ед. поставщик п.4 ч.1 | D12: ='Ед. поставщик п.4 ч.1'!H2 -> 1686688.23 | G12: =D12 -> 1686688.23 | J12: ='Ед. поставщик п.4 ч.1'!V2 -> 12462.75 | M12: 0
A13: Ед. поставщик п. 5 ч. 1 | D13: ='Ед. поставщик п.5 ч.1'!H2 -> 0 | G13: =D13 -> 0 | J13: ='Ед. поставщик п.5 ч.1'!V2 -> 0 | M13: 0
A14: Ед.поставщик за искл. п.4,5 ч.1 | D14: ='Ед.поставщик за искл. п.4,5 ч.1'!G2 -> 0 | G14: =D14 -> 0 | J14: ='Ед.поставщик за искл. п.4,5 ч.1'!T2 -> 0 | M14: 0
A15: Всего | D15: =SUM(D9:D14) -> 1686688.23 | G15: =SUM(G9:G14) -> 1686688.23 | J15: =SUM(J9:J14) -> 12462.75 | M15: 0
A19: Всего средств потрачено по заключенным контрактам | D19: ='Ед. поставщик п.4 ч.1'!P2+'Ед. поставщик п.5 ч.1'!P2+'Ед.поставщик за искл. п.4,5 ч.1'!N2+'Состоявшиеся аукционы'!V2+'Несостоявшиеся аукционы'!V2+'Иные конкурентные закупки'!V2 -> 1328662.88

Sheet Ед. поставщик п.4 ч.1
G2: Сумма заключенных контрактов | H2: =SUM(H9:H10070) -> 1686688.23 | N2: Сумма средств выплаченных по контрактам | P2: =SUM(P9:P10070) -> 1328662.88 | S2: Общая сумма расторжений по контрактам/договорам | V2: =SUM(V9:V10070) -> 12462.75
A6: № п/п | B6: Наименование муниципальной программы, национального или регионального проекта | C6: Контракт заключен в электронном виде посредством АИС "Портал поставщиков" (Да/Нет) | D6: Код бюджетной классификации | E6: № договора/контракта | F6: Дата заключения договора/контракта | G6: Предмет договора/контракта | H6: Цена договора/контракта | I6: Остаток по контракту | J6: ИНН поставщика (подрядчика, исполнителя) | K6: Поставщик (подрядчик, исполнитель) | L6: СМП и СОНО (да/нет) | M6: Сроки поставки товара (оказания услуги, выполнения работы), согласно договора/контракта; Предоставление документов на оплату Заказчику | N6: Фактическая дата поставки товара (оказания услуги, выполнения работы) | O6: Сроки оплаты согласно договора/контракта | P6: Сумма согласно документа об исполнении контракта заказчиком | Q6: Фактическая дата оплаты | R6: Изменение контракта (№, дата) | S6: Изменение контракта (увеличение цены контракта в рублях) | T6: Изменение контракта (уменьшение цены контракта в рублях) | U6: Расторжение контракта (№, дата) | V6: Сумма расторжения в рублях | W6: Примечание
A7: 1 | B7: 2 | C7: 3 | D7: 4 | E7: 5 | F7: 6 | G7: 7 | H7: 8 | I7: 9 | J7: 10 | K7: 11 | L7: 12 | M7: 13 | N7: 14 | O7: 15 | P7: 16 | Q7: 17 | R7: 18 | S7: 19 | T7: 20 | U7: 21 | V7: 22 | W7: 23
A8: 1 | B8: Муниципальная программа "Развитие образования" | D8: 902 0113 1310110490 244 | E8: № 1 | F8: 09.01.2020 | G8: Поставка бумаги для офисной техники | H8: 20000 | I8: =H8-P8 -> 0 | J8: 2353019514 | K8: ИП Котляров К.И. | M8: В течение 15 рабочих дней, со дня подписания сторонами контракта | N8: 2020-01-10 | O8: Не позднее 30 календарных дней с момента подписания акта приема-сдачи и документа на оплату | P8: 20000 | Q8: 2020-01-10 | W8: Пример
A9: 1 | B9: Муниципальная программа "Развитие образования" | D9: 925 0000 0000000000244 | E9: № 70 | F9: 2020-12-31 | G9: Услуги физической охраны объектов | H9: 381600 | I9: =IF(X9 = 1, H9 + SUM(S9:S17) - SUM(T9:T17) - SUM(P9:P17) - V9,0) -> -117120 | J9: 2353021954 | K9: ООО "ЧОП "Беркут" | M9: Постоянно, в течение срока действия контракта; до 25 числа месяца оказания услуг | N9: 2021-01-31 | O9: Не позднее 25 календарных дней с момента подписания акта и документа на оплату | P9: 55800 | Q9: 2021-02-02 | X9: 1
N10: 2021-02-28 | P10: 50400 | Q10: 2021-03-02 | X10: 1
N11: 2021-03-31 | P11: 55800 | Q11: 2021-04-01 | X11: 1
N12: 2021-04-30 | P12: 54000 | Q12: 2021-05-14 | X12: 1
N13: 2021-05-31 | P13: 55800 | Q13: 2021-06-01 | X13: 1
N14: 2021-06-30 | P14: 54000 | Q14: 2021-07-05 | X14: 1
N15: 2021-07-30 | P15: 55800 | Q15: 2021-08-02 | X15: 1
N16: 2021-08-31 | P16: 59520 | Q16: 2021-09-16 | X16: 1
N17: 2021-09-30 | P17: 57600 | Q17: 2021-10-01 | X17: 1
A18: 2 | B18: муниципальная программа "Развитие образования" | D18: 925 0000 0000000000244 | E18: № 14-Т | F18: 2020-12-31 | G18: Услуги по контролю за работой тревожной сигнализации | H18: 16800 | I18: =IF(X18 = 2, H18 + SUM(S18:S25) - SUM(T18:T25) - SUM(P18:P25) - V18,0) -> 0 | J18: 2353021954 | K18: ООО "ЧОП "Беркут" | M18: Постоянно, в течение срока действия контракта; до 25 числа месяца оказания услуг | N18: 2021-01-31 | O18: Не позднее 25 календарных дней с момента подписания акта и документа на оплату | P18: 1400 | Q18: 2021-02-02 | U18: № б/н от 31.08.2021 | V18: 5600 | X18: 2
N19: 2021-02-28 | P19: 1400 | Q19: 2021-03-02 | X19: 2
N20: 2021-03-31 | P20: 1400 | Q20: 2021-04-01 | X20: 2
N21: 2021-04-30 | P21: 1400 | Q21: 2021-05-12 | X21: 2
N22: 2021-05-31 | P22: 1400 | Q22: 2021-06-01 | X22: 2
N23: 2021-06-30 | P23: 1400 | Q23: 2021-07-05 | X23: 2
N24: 2021-07-30 | P24: 1400 | Q24: 2021-08-02 | X24: 2
N25: 2021-08-31 | P25: 1400 | Q25: 2021-09-16 | X25: 2
A26: 3 | B26: Муниципальная программа "Развитие образования" | D26: 925 0000 0000000000244 | E26: № 23070500324 | F26: 2020-12-31 | G26: Услуги электроэнергии | H26: 151168.12 | I26: =IF(X26 = 3, H26 + SUM(S26:S49) - SUM(T26:T49) - SUM(P26:P49) - V26,0) -> 9646.98 | J26: 2308119595 | K26: ПАО "ТНС энерго Кубань" | M26: Постоянно, в течение срока действия контракта; до 25 числа месяца оказания услуг | O26: до 10 числа месяца 30% стоимости подлежащего оплате объема покупки электрической энергии, до 25 числа месяца 40 % стоимости подлежащего оплате объема | P26: 8393.14 | Q26: 2021-01-18 | X26: 3
P27: 4331.04 | Q27: 2021-01-18 | X27: 3
P28: 6945.98 | Q28: 2021-01-22 | X28: 3
P29: 653.21 | Q29: 2021-02-16 | X29: 3
P30: 5353.86 | Q30: 2021-02-16 | X30: 3
P31: 4015.39 | Q31: 2021-03-01 | X31: 3
P32: 7074.91 | Q32: 2021-03-16 | X32: 3
P33: 5565.75 | Q33: 2021-03-16 | X33: 3
P34: 4174.3 | Q34: 2021-04-01 | X34: 3
P35: 3600.2 | Q35: 2021-04-14 | X35: 3
P36: 5272.54 | Q36: 2021-04-14 | X36: 3
P37: 3954.41 | Q37: 2021-05-12 | X37: 3
P38: 3797.2 | Q38: 2021-06-01 | X38: 3
P39: 3935.28 | Q39: 2021-06-15 | X39: 3
P40: 2951.46 | Q40: 2021-07-05 | X40: 3
P41: 5927.3 | Q41: 2021-07-15 | X41: 3
P42: 5895.55 | Q42: 2021-07-15 | X42: 3
P43: 4421.66 | Q43: 2021-08-02 | X43: 3
P44: 15864.74 | Q44: 2021-08-17 | X44: 3
P45: 13239.36 | Q45: 2021-08-17 | X45: 3
P46: 9929.52 | Q46: 2021-09-01 | X46: 3
P47: 8468.36 | Q47: 2021-09-16 | X47: 3
P48: 1404.72 | Q48: 2021-09-16 | X48: 3
P49: 6351.26 | Q49: 2021-10-01 | X49: 3
A50: 4 | B50: Муниципальная программа "Развитие образования" | D50: 925 0000 0000000000244 | E50: № 25-11-02739/21 | F50: 2021-12-31 | G50: Поставка газа | H50: 153813.7 | I50: =IF(X50 = 4, H50 + SUM(S50:S52) - SUM(T50:T52) - SUM(P50:P52) - V50,0) -> 24469.5 | J50: 2308070396 | K50: ООО "Газпром межрегионгаз Краснодар" | M50: Постоянно, в течение срока действия контракта; | N50: 2021-02-20 | O50: Не позднее 25 календарных дней с момента подписания акта и документа на оплату | P50: 58909.68 | Q50: 2021-02-12 | X50: 4
N51: 2021-03-20 | P51: 30776.79 | Q51: 2021-03-12 | X51: 4
N52: 2021-03-31 | P52: 39657.73 | Q52: 2021-04-13 | X52: 4
A53: 5 | B53: Муниципальная программа "Развитие образования" | D53: 925 0000 0000000000244 | E53: № 55-С | F53: 2020-12-31 | G53: Услуги по техническому обслуживанию объектовой станции системы пожарного мониторинга ПАК "Стрелец-Мониторинг" | H53: 72000 | I53: =IF(X53 = 5, H53 + SUM(S53:S61) - SUM(T53:T61) - SUM(P53:P61) - V53,0) -> 18000 | J53: 2353002302 | K53: ООО "Сигнал" | M53: Постоянно, в течение срока действия контракта; | N53: 2021-01-21 | O53: Не позднее 25 календарных дней с момента подписания акта и документа на оплату | P53: 6000 | Q53: 2021-02-01 | X53: 5
N54: 2021-02-24 | P54: 6000 | Q54: 2021-02-24 | X54: 5
N55: 2021-03-22 | P55: 6000 | Q55: 2021-03-26 | X55: 5
N56: 2021-04-21 | P56: 6000 | Q56: 2021-04-26 | X56: 5
N57: 2021-05-21 | P57: 6000 | Q57: 2021-05-21 | X57: 5
N58: 2021-06-21 | P58: 6000 | Q58: 2021-06-21 | X58: 5
N59: 2021-07-31 | P59: 6000 | Q59: 2021-08-02 | X59: 5
N60: 2021-08-31 | P60: 6000 | Q60: 2021-08-31 | X60: 5
N61: 2021-09-30 | P61: 6000 | Q61: 2021-10-01 | X61: 5
A62: 6 | B62: Муниципальная программа "Развитие образования" | D62: 925 0000 0000000000244 | E62: № 72 | F62: 2020-12-31 | G62: Услуги по техническому обслуживанию автоматических установок пожарной безопасности | H62: 48000 | I62: =IF(X62 = 6, H62 + SUM(S62:S70) - SUM(T62:T70) - SUM(P62:P70) - V62,0) -> 12000 | J62: 2353002302 | K62: ООО "Сигнал" | M62: Постоянно, в течение срока действия контракта; | N62: 2021-01-21 | O62: Не позднее 25 календарных дней с момента подписания акта и документа на оплату | P62: 4000 | Q62: 2021-02-01 | X62: 6
N63: 2021-02-24 | P63: 4000 | Q63: 2021-02-24 | X63: 6
N64: 2021-02-22 | P64: 4000 | Q64: 2021-03-26 | X64: 6
N65: 2021-04-21 | P65: 4000 | Q65: 2021-04-26 | X65: 6
N66: 2021-05-21 | P66: 4000 | Q66: 2021-05-21 | X66: 6
N67: 2021-06-21 | P67: 4000 | Q67: 2021-06-21 | X67: 6
N68: 2021-07-31 | P68: 4000 | Q68: 2021-08-02 | X68: 6
N69: 2021-08-31 | P69: 4000 | Q69: 2021-08-31 | X69: 6
N70: 2021-09-30 | P70: 4000 | Q70: 2021-10-01 | X70: 6
A71: 7 | B71: Муниципальная программа "Развитие образования" | D71: 925 0000 0000000000244 | E71: № 34550721/003359 | F71: 2021-01-22 | G71: Поставка бензина | H71: 81236 | I71: =IF(X71 = 7, H71 + SUM(S71:S76) - SUM(T71:T76) - SUM(P71:P76) - V71,0) -> 0 | J71: 7743529527 | K71: ООО "РН-Карт" | M71: Постоянно, в течение срока действия контракта; | N71: 2021-01-31 | O71: Не позднее 15 календарных дней с момента подписания акта и документа на оплату | P71: 5955.75 | Q71: 2021-02-08 | U71: № б/н от 30.06.2021 | V71: 6862.75 | X71: 7
N72: 2021-02-28 | P72: 13557.25 | Q72: 2021-01-09 | X72: 7
N73: 2021-03-31 | P73: 12095.5 | Q73: 2021-04-07 | X73: 7
N74: 2021-04-30 | P74: 13407.75 | Q74: 2021-05-14 | X74: 7
N75: 2021-05-31 | P75: 11675.5 | Q75: 2021-06-08 | X75: 7
N76: 2021-06-30 | P76: 17681.5 | Q76: 2021-07-05 | X76: 7
A77: 8 | B77: Муниципальная программа "Развитие образования" | D77: 925 0000 0000000000244 | E77: № 584 | F77: 2021-01-25 | G77: Услуги электросвязи | H77: 10000 | I77: =IF(X77 = 8, H77 + SUM(S77:S85) - SUM(T77:T85) - SUM(P77:P85) - V77,0) -> 4861.31 | J77: 7707049388 | K77: ПАО "Ростелеком" | M77: Постоянно, в течение срока действия контракта; | N77: 2021-01-31 | O77: Не позднее 15 календарных дней с момента подписания акта и документа на оплату | P77: 391.07 | Q77: 2021-02-08 | X77: 8
N78: 2021-02-28 | P78: 520.37 | Q78: 2021-03-05 | X78: 8
N79: 2021-03-31 | P79: 644.02 | Q79: 2021-04-06 | X79: 8
N80: 2021-04-30 | P80: 606.62 | Q80: 2021-05-13 | X80: 8
N81: 2021-05-31 | P81: 514.97 | Q81: 2021-06-07 | X81: 8
N82: 2021-06-30 | P82: 643.43 | Q82: 2021-07-08 | X82: 8
N83: 2021-07-31 | P83: 655.41 | Q83: 2021-08-04 | X83: 8
N84: 2021-08-31 | P84: 629.27 | Q84: 2021-09-08 | X84: 8
N85: 2021-09-30 | P85: 533.53 | Q85: 2021-10-05 | X85: 8
A86: 9 | B86: Муниципальная программа "Развитие образования" | D86: 925 0000 0000000000244 | E86: № 584-Б2 | F86: 2021-01-25 | G86: Услуги междугородной и международной связи | H86: 1000 | I86: =IF(X86 = 9, H86 + SUM(S86:S93) - SUM(T86:T93) - SUM(P86:P93) - V86,0) -> 809.15 | J86: 7707049388 | K86: ПАО "Ростелеком" | M86: Постоянно, в течение срока действия контракта; | N86: 2021-01-31 | O86: Не позднее 15 календарных дней с момента подписания акта и документа на оплату | P86: 14.55 | Q86: 2021-02-09 | X86: 9
N87: 2021-03-31 | P87: 22.7 | Q87: 2021-04-06 | X87: 9
N88: 2021-04-30 | P88: 11.35 | Q88: 2021-05-13 | X88: 9
N89: 2021-05-31 | P89: 16.3 | Q89: 2021-06-07 | X89: 9
N90: 2021-06-30 | P90: 6.72 | Q90: 2021-07-05 | X90: 9
N91: 2021-07-31 | P91: 13.44 | Q91: 2021-08-04 | X91: 9
N92: 2021-08-31 | P92: 22.85 | Q92: 2021-09-08 | X92: 9
N93: 2021-09-30 | P93: 82.94 | Q93: 2021-10-05 | X93: 9
A94: 10 | B94: Муниципальная программа "Развитие образования" | D94: 925 0000 0000000000244 | E94: 4300712.19 | F94: 2021-01-25 | G94: Услугм доступа к сети Интернет | H94: 30000 | I94: =IF(X94 = 10, H94 + SUM(S94:S102) - SUM(T94:T102) - SUM(P94:P102) - V94,0) -> 7500 | J94: 7707049388 | K94: ПАО "Ростелеком" | N94: 2021-01-31 | O94: Не позднее 15 календарных дней с момента подписания акта и документа на оплату | P94: 2500 | Q94: 2021-02-09 | X94: 10
N95: 2021-02-28 | P95: 2500 | Q95: 2021-02-05 | X95: 10
N96: 2021-03-31 | P96: 2500 | Q96: 2021-04-06 | X96: 10
N97: 2021-04-30 | P97: 2500 | Q97: 2021-05-13 | X97: 10
N98: 2021-05-31 | P98: 2500 | Q98: 2021-06-07 | X98: 10
N99: 2021-06-30 | P99: 2500 | Q99: 2021-07-05 | X99: 10
N100: 2021-07-31 | P100: 2500 | Q100: 2021-08-04 | X100: 10
N101: 2021-08-31 | P101: 2500 | Q101: 2021-09-08 | X101: 10
N102: 2021-09-30 | P102: 2500 | Q102: 2021-10-05 | X102: 10
A103: 11 | B103: Муниципальная программа "Развитие образования" | D103: 925 0000 0000000000244 | E103: № 42 | F103: 2021-01-25 | G103: Осуществление предрейсового и послересвового осмотра водителя и тех.осмотра ТС | H103: 40000 | I103: =IF(X103 = 11, H103 + SUM(S103:S110) - SUM(T103:T110) - SUM(P103:P110) - V103,0) -> 10720 | J103: 2353017179 | K103: ТРОКРООО "ВОА" | M103: Постоянно, в течение срока действия контракта; | N103: 2021-01-31 | O103: Не позднее 30 календарных дней с момента подписания акта и документа на оплату | P103: 3120 | Q103: 2021-02-12 | X103: 11
N104: 2021-02-28 | P104: 4560 | Q104: 2021-03-23 | X104: 11
N105: 2021-03-31 | P105: 4320 | Q105: 2021-04-16 | X105: 11
N106: 2021-04-30 | P106: 2160 | Q106: 2021-05-14 | X106: 11
N107: 2021-05-31 | P107: 3120 | Q107: 2021-06-09 | X107: 11
N108: 2021-06-30 | P108: 4080 | Q108: 2021-07-09 | X108: 11
N109: 2021-07-31 | P109: 3360 | Q109: 2021-08-12 | X109: 11
N110: 2021-08-31 | P110: 4560 | Q110: 2021-09-15 | X110: 11
A111: 12 | B111: Муниципальная программа "Развитие образования" | D111: 925 0000 0000000000244 | E111: № 8 | F111: 2021-01-25 | G111: Услуга по обеспечению отпуска воды | H111: 3450 | I111: =IF(X111 = 12, H111 + SUM(S111:S111) - SUM(T111:T111) - SUM(P111:P111) - V111,0) -> 3450 | J111: 2353023951 | K111: ООО "Водоснаб" | M111: Постоянно, в течение срока действия контракта; | X111: 12
A112: 13 | B112: Муниципальная программа "Развитие образования" | D112: 925 0000 0000000000244 | E112: № 82 | F112: 2021-01-25 | G112: Услуги по лабораторныи иследованиям смывов, консультация по иным вопросам | H112: 3157.87 | I112: =IF(X112 = 13, H112 + SUM(S112:S112) - SUM(T112:T112) - SUM(P112:P112) - V112,0) -> 0 | J112: 2308105200 | K112: Тимашевский филиал ФБУЗ "Центр гигиены и эпидемиологии в Краснодарском крае" | M112: В течение 15 рабочих дней, со дня подписания сторонами контракта | N112: 2021-02-01 | O112: Не позднее 30 календарных дней с момента подписания акта и документа на оплату | P112: 3157.87 | Q112: 2021-02-02 | X112: 13
A113: 14 | B113: Муниципальная программа "Развитие образования" | D113: 925 0000 0000000000244 | E113: № 525/21-С | F113: 2021-01-29 | G113: Услуги по техническому сопровождению Системы мониторинга транспортных средств | H113: 5400 | I113: =IF(X113 = 14, H113 + SUM(S113:S120) - SUM(T113:T120) - SUM(P113:P120) - V113,0) -> 1800 | J113: 2310142841 | K113: ООО "Техносити" | M113: Постоянно, в течение срока действия контракта; | N113: 2021-01-29 | O113: Не позднее 30 календарных дней с момента подписания акта и документа на оплату | P113: 450 | Q113: 2021-02-17 | X113: 14
N114: 2021-02-25 | P114: 450 | Q114: 2021-02-25 | X114: 14
N115: 2021-03-31 | P115: 450 | Q115: 2021-04-16 | X115: 14
N116: 2021-04-30 | P116: 450 | Q116: 2021-05-14 | X116: 14
N117: 2021-05-31 | P117: 450 | Q117: 2021-05-28 | X117: 14
N118: 2021-06-30 | P118: 450 | Q118: 2021-06-22 | X118: 14
N119: 2021-07-30 | P119: 450 | Q119: 2021-08-03 | X119: 14
N120: 2021-08-31 | P120: 450 | Q120: 2021-09-08 | X120: 14
A121: 15 | B121: Муниципальная программа "Развитие образования" | D121: 925 0000 0000000000244 | E121: № б/н | F121: 2021-01-29 | G121: Услуги по сбору и вывозу твердых коммунальных отходов | H121: 18000 | I121: =IF(X121 = 15, H121 + SUM(S121:S128) - SUM(T121:T128) - SUM(P121:P128) - V121,0) -> 6202.5 | J121: 2353246933 | K121: ООО "Техкомбытсервис" | M121: Постоянно, в течение срока действия контракта; | N121: 2021-01-31 | O121: Не позднее 30 календарных дней с момента подписания акта и документа на оплату | P121: 1690 | Q121: 2021-02-25 | X121: 15
N122: 2021-02-28 | P122: 715 | Q122: 2021-03-10 | X122: 15
N123: 2021-03-31 | P123: 1235 | Q123: 2021-04-13 | X123: 15
N124: 2021-04-30 | P124: 1072.5 | Q124: 2021-05-13 | X124: 15
N125: 2021-05-31 | P125: 1170 | Q125: 2021-06-08 | X125: 15
N126: 2021-06-30 | P126: 1820 | Q126: 2021-07-07 | X126: 15
N127: 2021-07-31 | P127: 3380 | Q127: 2021-08-12 | X127: 15
N128: 2021-08-31 | P128: 715 | Q128: 2021-09-08 | X128: 15
A129: 16 | B129: Муниципальная программа "Развитие образования" | D129: 925 0000 0000000000244 | E129: № 15/2021 | F129: 2021-02-04 | G129: Услуги по ремонту автотранспортного средства | H129: 3450 | I129: =IF(X129 = 16, H129 + SUM(S129:S129) - SUM(T129:T129) - SUM(P129:P129) - V129,0) -> 0 | J129: 235300156997 | K129: ИП Ланговой Е.Я. | M129: В течение 15 рабочих дней, со дня подписания сторонами контракта | N129: 2021-02-04 | O129: Не позднее 30 календарных дней с момента подписания акта и документа на оплату | P129: 3450 | Q129: 2021-02-08 | X129: 16
A130: 17 | B130: Муниципальная программа "Развитие образования" | D130: 925 0000 0000000000244 | E130: № 71-ЭО | F130: 2021-02-05 | G130: Оказание консультационных услуг по составлению экологической отчетности | H130: 4700 | I130: =IF(X130 = 17, H130 + SUM(S130:S130) - SUM(T130:T130) - SUM(P130:P130) - V130,0) -> 0 | J130: 235306110100 | K130: ИП Казерова С.В. | M130: В течение 15 рабочих дней, со дня подписания сторонами контракта | N130: 2021-02-05 | O130: Не позднее 30 календарных дней с момента подписания акта и документа на оплату | P130: 4700 | Q130: 2021-02-17 | X130: 17
A131: 18 | B131: Муниципальная программа "Развитие образования" | D131: 925 0000 0000000000244 | E131: № 001-ПН-21 | F131: 2021-02-10 | G131: Испытания и измерения электроустановок и электрооборудования | H131: 10586.76 | I131: =IF(X131 = 18, H131 + SUM(S131:S131) - SUM(T131:T131) - SUM(P131:P131) - V131,0) -> 0 | J131: 2353015823 | K131: АО "Энергетик" | M131: В течение 30 рабочих дней, со дня подписания сторонами контракта | N131: 2021-05-12 | O131: После подписания акта выполненных работ | P131: 10586.76 | Q131: 2021-05-14 | X131: 18
A132: 19 | B132: Муниципальная программа "Развитие образования" | D132: 925 0000 0000000000244 | E132: № ОН-23/21 | F132: 2021-02-24 | G132: Образовательная услуга по дополнительной професиональной программе повышения квалификации | H132: 9500 | I132: =IF(X132 = 19, H132 + SUM(S132:S132) - SUM(T132:T132) - SUM(P132:P132) - V132,0) -> 0 | J132: 2311163812 | K132: ООО "Академия стратегического управления" | M132: В течение 15 рабочих дней, со дня подписания сторонами контракта | N132: 2021-03-19 | O132: Не позднее 30 календарных дней с момента подписания акта и документа на оплату | P132: 9500 | Q132: 2021-03-03 | X132: 19
A133: 20 | B133: Муниципальная программа "Развитие образования" | D133: 925 0000 0000000000244 | E133: № 24/21-П | F133: 2021-03-23 | G133: Приобретение автошины | H133: 22920 | I133: =IF(X133 = 20, H133 + SUM(S133:S133) - SUM(T133:T133) - SUM(P133:P133) - V133,0) -> 0 | J133: 2309080735 | K133: ООО "Шинхимтранс" | M133: В течение 15 рабочих дней, со дня подписания сторонами контракта | N133: 2021-03-26 | O133: Не позднее 3 календарных дней с момента подписания акта и документа на оплату | P133: 22920 | Q133: 2021-03-26 | X133: 20
A134: 21 | B134: Муниципальная программа "Развитие образования" | D134: 925 0000 0000000000244 | E134: № 16/21-У | F134: 2021-03-23 | G134: Услуги шиномонтажа | H134: 1920 | I134: =IF(X134 = 21, H134 + SUM(S134:S134) - SUM(T134:T134) - SUM(P134:P134) - V134,0) -> 0 | J134: 2309080735 | K134: ООО "Шинхимтранс" | M134: В течение 15 рабочих дней, со дня подписания сторонами контракта | N134: 2021-03-26 | O134: Не позднее 3 календарных дней с момента подписания акта и документа на оплату | P134: 1920 | Q134: 2021-03-26 | X134: 21
A135: 22 | B135: Муниципальная программа "Развитие образования" | D135: 925 0000 0000000000244 | E135: № 23050390/21 | F135: 2021-03-29 | G135: Услуга на право использования программного продукта СКЗИ | H135: 5000 | I135: =IF(X135 = 22, H135 + SUM(S135:S135) - SUM(T135:T135) - SUM(P135:P135) - V135,0) -> 0 | J135: 6663003127 | K135: АО "ПФ "СКБ Контур" | M135: В течение 15 рабочих дней, со дня подписания сторонами контракта | N135: 2021-03-29 | O135: Не позднее 30 календарных дней с момента подписания акта и документа на оплату | P135: 5000 | Q135: 2021-03-30 | X135: 22
A136: 23 | B136: Муниципальная программа "Развитие образования" | D136: 925 0000 0000000000244 | E136: № 267 | F136: 2021-03-30 | G136: Услуга по формированию заявления "Карта предприятия" | H136: 4500 | I136: =IF(X136 = 23, H136 + SUM(S136:S136) - SUM(T136:T136) - SUM(P136:P136) - V136,0) -> 0 | J136: 2369000660 | K136: ООО "КАНкор" | M136: В течение 15 рабочих дней, со дня подписания сторонами контракта | N136: 2021-03-31 | O136: Не позднее 5 календарных дней с момента подписания акта и документа на оплату | P136: 4500 | Q136: 2021-04-02 | X136: 23
A137: 24 | B137: Муниципальная программа "Развитие образования" | D137: 925 0000 0000000000244 | E137: № 04/21 | F137: 2021-04-07 | G137: Услуга по откачке и вывозу жидких бытовых отходов | H137: 4650 | I137: =IF(X137 = 24, H137 + SUM(S137:S137) - SUM(T137:T137) - SUM(P137:P137) - V137,0) -> 4650 | J137: 2369007754 | K137: ООО "РООС" | M137: Постоянно, в течение срока действия контракта; | X137: 24
A138: 25 | B138: Муниципальная программа "Развитие образования" | D138: 925 0000 0000000000244 | E138: № 65-20 | F138: 2021-01-29 | G138: Услуга по систематической дератизации | H138: 6054.52 | I138: =IF(X138 = 25, H138 + SUM(S138:S140) - SUM(T138:T140) - SUM(P138:P140) - V138,0) -> 1513.63 | J138: 2353018870 | K138: ООО "Дезинфекция" | M138: Постоянно, в течение срока действия контракта; | P138: 1513.63 | Q138: 2021-04-13 | X138: 25
N139: 2021-06-17 | P139: 1513.63 | Q139: 2021-06-28 | X139: 25
N140: 2021-09-15 | P140: 1513.63 | Q140: 2021-09-16 | X140: 25
A141: 26 | B141: Муниципальная программа "Развитие образования" | D141: 925 0000 0000000000244 | E141: № 65/21/К | F141: 2021-04-08 | G141: Услуга по профилактической дезинсекции открытой территории | H141: 4700 | I141: =IF(X141 = 26, H141 + SUM(S141:S141) - SUM(T141:T141) - SUM(P141:P141) - V141,0) -> 0 | J141: 2353018870 | K141: ООО "Дезинфекция" | M141: Постоянно, в течение срока действия контракта; | P141: 4700 | Q141: 2021-06-02 | X141: 26
A142: 27 | B142: Муниципальная программа "Развитие образования" | D142: 925 0000 0000000000244 | E142: № 19 | F142: 2021-04-14 | G142: Поставка учебно-педагогической документации | H142: 7980 | I142: =IF(X142 = 27, H142 + SUM(S142:S142) - SUM(T142:T142) - SUM(P142:P142) - V142,0) -> 0 | J142: 2310132554 | K142: ООО "Краснодарский учколлектор" | M142: До 6 августа 2021 года включительно | N142: 2021-06-17 | P142: 7980 | Q142: 2021-06-22 | X142: 27
A143: 28 | B143: Муниципальная программа "Развитие образования" | D143: 925 0000 0000000000244 | E143: № 76/21 | F143: 2021-04-19 | G143: Услуги по проведению предварительных и периодических осмотров (обследований) работников | H143: 111708 | I143: =IF(X143 = 28, H143 + SUM(S143:S143) - SUM(T143:T143) - SUM(P143:P143) - V143,0) -> 0 | J143: 2353006498 | K143: ГБУЗ "Тимашевская ЦРБ" | M143: В течение 30 рабочих дней, со дня подписания сторонами контракта | N143: 2021-05-14 | P143: 111708 | Q143: 2021-05-27 | X143: 28
A144: 29 | B144: Муниципальная программа "Развитие образования" | D144: 925 0000 0000000000244 | E144: № 279-ТО | F144: 2021-05-26 | G144: Услуги по разработке технического отчета | H144: 8000 | I144: =IF(X144 = 29, H144 + SUM(S144:S144) - SUM(T144:T144) - SUM(P144:P144) - V144,0) -> 0 | J144: 235306110100 | K144: ИП Казерова С.В. | M144: В течение 30 рабочих дней, со дня подписания сторонами контракта | N144: 2021-05-26 | P144: 8000 | Q144: 2021-06-01 | X144: 29
A145: 30 | B145: Муниципальная программа "Развитие образования" | D145: 925 0000 0000000000244 | E145: № 274 | F145: 2021-06-01 | G145: Приобретение модуля питания БП-12В/5А | H145: 8000 | I145: =IF(X145 = 30, H145 + SUM(S145:S145) - SUM(T145:T145) - SUM(P145:P145) - V145,0) -> 0 | J145: 2353002302 | K145: ООО "Сигнал" | M145: В течение 30 рабочих дней, со дня подписания сторонами контракта | N145: 2021-06-01 | P145: 8000 | Q145: 2021-06-07 | X145: 30
A146: 31 | B146: Муниципальная программа "Развитие образования" | D146: 925 0000 0000000000244 | E146: № 389 | F146: 2021-06-08 | G146: Приобрететие блока СКЗИ тахографа, литеевой батареи, замена литеевой батареи, активация и настройка тахографа | H146: 23500 | I146: =IF(X146 = 31, H146 + SUM(S146:S148) - SUM(T146:T148) - SUM(P146:P148) - V146,0) -> 0 | J146: 2369000660 | K146: ООО "КАНкор" | M146: В течение 30 рабочих дней, со дня подписания сторонами контракта | N146: 2021-06-09 | P146: 19000 | Q146: 2021-06-15 | X146: 31
N147: 2021-06-09 | P147: 500 | Q147: 2021-06-16 | X147: 31
N148: 2021-06-09 | P148: 4000 | Q148: 2021-06-16 | X148: 31
A149: 32 | B149: Муниципальная программа "Развитие образования" | D149: 925 0000 0000000000244 | E149: № 34550721/022910 | F149: 2021-07-01 | G149: Поставка бензина | H149: 49450 | I149: =IF(X149 = 32, H149 + SUM(S149:S151) - SUM(T149:T151) - SUM(P149:P151) - V149,0) -> 18509.25 | J149: 7743529527 | K149: ООО "РН-Карт" | M149: Постоянно, в течение срока действия контракта; | N149: 2021-07-31 | O149: Не позднее 15 календарных дней с момента подписания акта и документа на оплату | P149: 8803.75 | Q149: 2021-08-09 | X149: 32
N150: 2021-08-31 | P150: 14232 | Q150: 2021-09-08 | X150: 32
N151: 2021-09-30 | P151: 7905 | Q151: 2021-10-05 | X151: 32
A152: 33 | B152: Муниципальная программа "Развитие образования" | D152: 925 0000 0000000000244 | E152: № 107-39/223-21 | F152: 2021-07-29 | G152: Услуга по распломбировке однофазного прибора учета электроэнергии | H152: 1140.98 | I152: =IF(X152 = 33, H152 + SUM(S152:S152) - SUM(T152:T152) - SUM(P152:P152) - V152,0) -> 0 | J152: 2309001660 | K152: Филиал ПАО "Россети Кубань" Тимашевские электрические сети | M152: Постоянно, в течение срока действия контракта; | N152: 2021-08-03 | P152: 1140.98 | Q152: 2021-08-03 | X152: 33
A153: 34 | B153: Муниципальная программа "Развитие образования" | D153: 925 0000 0000000000244 | E153: № 70 | F153: 2021-08-01 | G153: Услуги физической охраны объектов | H153: 293760 | I153: =IF(X153 = 34, H153 + SUM(S153:S153) - SUM(T153:T153) - SUM(P153:P153) - V153,0) -> 293760 | J153: 2353021954 | K153: ООО "ЧОП "Беркут" | M153: Постоянно, в течение срока действия контракта; | X153: 34
A154: 35 | B154: Муниципальная программа "Развитие образования" | D154: 925 0000 0000000000244 | E154: № 34000734 | F154: 2021-08-23 | G154: Услуги по охране объекта с ПЦН с использованием КТС/GSM | H154: 9096.28 | I154: =IF(X154 = 35, H154 + SUM(S154:S154) - SUM(T154:T154) - SUM(P154:P154) - V154,0) -> 9096.28 | J154: 2310163739 | K154: ФГКУ УВО ВНГ России по Краснодарскому краю | M154: Постоянно, в течение срока действия контракта; | X154: 35
A155: 36 | B155: Муниципальная программа "Развитие образования" | D155: 925 0000 0000000000244 | E155: № 174/21 | F155: 2021-08-29 | G155: Услуги по проведению предварительных и периодических осмотров (обследований) работников | H155: 35694 | I155: =IF(X155 = 36, H155 + SUM(S155:S155) - SUM(T155:T155) - SUM(P155:P155) - V155,0) -> 35694 | J155: 2353006498 | K155: ГБУЗ "Тимашевская ЦРБ" | M155: В течение 30 рабочих дней, со дня подписания сторонами контракта | X155: 36
A156: 37 | B156: Муниципальная программа "Развитие образования" | D156: 925 0000 0000000000244 | E156: № 78 | F156: 2021-09-22 | G156: Услуги по проверке сигнализаторов загазованности | H156: 1600 | I156: =IF(X156 = 37, H156 + SUM(S156:S156) - SUM(T156:T156) - SUM(P156:P156) - V156,0) -> 0 | J156: 2353019627 | K156: ООО "ХК "Энергетик" | M156: В течение 30 рабочих дней, со дня подписания сторонами контракта | O156: Не позднее 15 календарных дней с момента подписания акта и документа на оплату | P156: 1600 | Q156: 2021-09-23 | X156: 37
A157: 38 | B157: Муниципальная программа "Развитие образования" | D157: 925 0000 0000000000244 | E157: № 152 | F157: 2021-09-22 | G157: Услуги по проверке дымовых и вентиляционных каналов | H157: 2400 | I157: =IF(X157 = 38, H157 + SUM(S157:S157) - SUM(T157:T157) - SUM(P157:P157) - V157,0) -> 0 | J157: 235303841817 | K157: ИП Черненко А.Г. | M157: В течение 30 рабочих дней, со дня подписания сторонами контракта | O157: Не позднее 15 календарных дней с момента подписания акта и документа на оплату | P157: 2400 | Q157: 2021-09-23 | X157: 38
A158: 39 | B158: Муниципальная программа "Развитие образования" | D158: 925 0000 0000000000244 | E158: № б/н | F158: 2021-09-24 | G158: Монтаж тревожнеой кнопки (КТС с выводом сигнала на пульт отдела вневедомственной охраны Росгвардии | H158: 40752 | I158: =IF(X158 = 39, H158 + SUM(S158:S158) - SUM(T158:T158) - SUM(P158:P158) - V158,0) -> 0 | J158: 232700864879 | K158: ИП Ус Л.А. | M158: В течение 30 рабочих дней, со дня подписания сторонами контракта | O158: Не позднее 15 календарных дней с момента подписания акта и документа на оплату | P158: 40752 | Q158: 2021-09-29 | X158: 39
X159: 40

Sheet Ед. поставщик п.5 ч.1
F2: Сумма заключенных контрактов | H2: =SUM(H9:H9999) -> 0 | N2: Сумма средств выплаченных по контрактам | P2: =SUM(P9:P9999) -> 0 | S2: Общая сумма расторжений по контрактам/договорам | V2: =SUM(V9:V9999) -> 0
A6: № п/п | B6: Наименование муниципальной программы, национального или регионального проекта | C6: Контракт заключен в электронном виде посредством АИС "Портал поставщиков" (Да/Нет) | D6: Код бюджетной классификации | E6: № договора/контракта | F6: Дата заключения договора/контракта | G6: Предмет договора/контракта | H6: Цена договора/контракта | I6: Остаток по контракту | J6: ИНН поставщика (подрядчика, исполнителя) | K6: Поставщик (подрядчик, исполнитель) | L6: СМП и СОНО (Да/Нет) | M6: Сроки поставки товара (оказания услуги, выполнения работы), согласно контракта; Предоставление документов на оплату Закзчику | N6: Фактическая дата поставки товара (оказания услуги, выполнения работы) и (или) предоставление документов на оплату и подписание документов о приемке | O6: Сроки оплаты согласно договора/контракта | P6: Сумма согласно документа об исполнении контракта заказчиком | Q6: Фактическая дата оплаты | R6: Изменение контракта (№, дата) | S6: Изменение контракта (увеличение цены контракта в рублях) | T6: Изменение контракта (уменьшение цены контракта в рублях) | U6: Расторжение контракта (№, дата) | V6: Сумма расторжения | W6: Примечание
A7: 1 | B7: 2 | C7: 3 | D7: 4 | E7: 5 | F7: 6 | G7: 7 | H7: 8 | I7: 9 | J7: 10 | K7: 11 | L7: 12 | M7: 13 | N7: 14 | O7: 15 | P7: 16 | Q7: 17 | R7: 18 | S7: 19 | T7: 20 | U7: 21 | V7: 22 | W7: 23
A8: 1 | B8: Муниципальная программа "Развитие образования" | D8: 902 0113 1310110490 244 | E8: № 1 | F8: 2020-01-09 | G8: Поставка бумаги для офисной техники | H8: 20000 | I8: 0 | J8: 2353019514 | K8: ИП Котляров К.И. | M8: В течение 15 рабочих дней, со дня подписания сторонами контракта | N8: 2020-01-10 | O8: Не позднее 30 календарных дней с момента подписания Заказчиком и Подрядчиком акта приема-сдачи и предоставленного Подрядчиком документа на оплату | P8: 20000 | Q8: 2020-01-10 | W8: Пример
X9: 2

Sheet Ед.поставщик за искл. п.4,5 ч.1
E2: Сумма заключенных контрактов | G2: =SUM(G9:G9999) -> 0 | L2: Сумма средств выплаченных по контрактам | N2: =SUM(N9:N9999) -> 0 | Q2: Общая сумма расторжений по контрактам/договорам | T2: =SUM(T9:T9999) -> 0
A6: № п/п | B6: № в реестре контрактов | C6: Код бюджетной классификации | D6: № контракта | E6: Дата заключения | F6: Предмет договора/контракта | G6: Цена контракта (Объем финансового обеспечения подлежащий к оплате в текущем фин. году) | H6: Остаток по контракту | I6: ИНН поставщика (подрядчика, исполнителя) | J6: Поставщик (подрядчик, исполнитель) | K6: Сроки поставки товара (оказания услуги, выполнения работы), согласно контракта; Предоставление документов на оплату Закзчику | L6: Фактическая дата поставки товара (оказания услуги, выполнения работы) и (или) предоставление документов на оплату и подписание документов о приемке | M6: Сроки оплаты согласно договора/контракта | N6: Сумма согласно документа об исполнении контракта заказчиком | O6: Фактическая дата оплаты | P6: Изменение контракта (№, дата) | Q6: Изменение контракта (увеличение цены контракта в рублях) | R6: Изменение контракта (уменьшение цены контракта в рублях) | S6: Расторжение контракта (№, дата) | T6: Сумма расторжения | U6: Примечание
A7: 1 | B7: 2 | C7: 3 | D7: 4 | E7: 5 | F7: 6 | G7: 7 | H7: 8 | I7: 9 | J7: 10 | K7: 11 | L7: 12 | M7: 13 | N7: 14 | O7: 15 | P7: 16 | Q7: 17 | R7: 18 | S7: 19 | T7: 20 | U7: 21
A8: 1 | B8: 3235301125818100175 | C8: 9020104 5210000190244 | D8: 123 | E8: 2019-12-24 | F8: Поставка электрической энергии | G8: 100000 | H8: 90000 | I8: 2308091759 | J8: АО "НЭСК" | K8: Поставка электрической энергии осуществляется постоянно, в течение срока действия контракта | L8: 2019-12-02 | M8: До 10 числа расчетного месяца в размере 30%, до 25 числа расчетного месяца 40%, до 18 числа месяца, следующего за расчетным | N8: 10000 | O8: 2019-01-24 | U8: Пример
V9: 2

Sheet Состоявшиеся аукционы
E2: Сумма начальных (максимальных) цен контрактов | G2: =SUM(G9:G9996) -> 0 | O2: Сумма заключенных контрактов | Q2: =SUM(Q9:Q9996) -> 0 | T2: Сумма средств выплаченных по контрактам | V2: =SUM(V9:V9996) -> 0 | Y2: Общая сумма расторжений по контрактам/договорам | AB2: =SUM(AB9:AB9996) -> 0
A6: № п/п | B6: Наименование муниципальной программы, национального или регионального проекта | C6: ИКЗ (Идентификационный код закупки) | D6: Код бюджетной классификации | E6: № извещения | F6: Объект закупки | G6: Н(М)ЦК | H6: Экономия | I6: Количество поданных заявок | J6: Количество заявок признанные несоответствующими | K6: СМП и СОНО | L6: № в реестре контрактов | M6: № контракта | N6: Дата заключения | O6: ИНН поставщика (подрядчика, исполнителя) | P6: Поставщик (подрядчик, исполнитель) | Q6: Цена контракта | R6: Остаток по контракту | S6: Сроки поставки товара (оказания услуги, выполнения работы), согласно контракта | T6: Фактическая дата поставки товара (оказания услуги, выполнения работы) и (или) предоставление документов на оплату и подписание документов о приемке | U6: Сроки оплаты согласно контракта | V6: Сумма согласно документа об исполнении контракта заказчиком | W6: Фактическая дата оплаты | X6: Изменение контракта (№, дата) | Y6: Изменение контракта (увеличение цены контракта в рублях) | Z6: Изменение контракта (уменьшение цены контракта в рублях) | AA6: Расторжение контракта (№, дата) | AB6: Сумма расторжения | AC6: Примечание
A7: 1 | B7: 2 | C7: 3 | D7: 4 | E7: 5 | F7: 6 | G7: 7 | H7: 8 | I7: 9 | J7: 10 | K7: 11 | L7: 12 | M7: 13 | N7: 14 | O7: 15 | P7: 16 | Q7: 17 | R7: 18 | S7: 19 | T7: 20 | U7: 21 | V7: 22 | W7: 23 | X7: 24 | Y7: 25 | Z7: 26 | AA7: 27 | AB7: 28 | AC7: 29
A8: 1 | C8: 193235301125823530100103000010000244 | D8: 902 0113 1210310010 244 | E8: 0818300019919000194 | F8: Поставка картриджа и тонер-картриджей | G8: 15500.01 | H8: =G8-Q8 -> 6725 | I8: 6 | J8: 0 | K8: Нет | L8: 3235301125819000079 | M8: Ф.2019.412162 | N8: 2019-07-09 | O8: 3443923035 | P8: ООО "АНАЛИТИК ЦЕНТР" | Q8: 8775.01 | R8: =Q8-V8 -> 0 | S8: В течение 20 рабочих дней со дня заключения сторонами муниципального контракта | T8: 2019-07-31 | U8: Не позднее 30 календарных дней с момента подписания Заказчиком документа о приемке выполненных работ и представленного Подрядчиком документа на оплату | V8: 8775.01 | W8: 2019-08-19 | AC8: Пример
AD9: 2

Sheet Несостоявшиеся аукционы
E2: Сумма начальных (максимальных) цен контрактов | G2: =SUM(G9:G9996) -> 0 | O2: Сумма заключенных контрактов | Q2: =SUM(Q9:Q9996) -> 0 | T2: Сумма средств выплаченных по контрактам | V2: =SUM(V9:V9996) -> 0 | Y2: Общая сумма расторжений по контрактам/договорам | AB2: =SUM(AB9:AB9996) -> 0
A6: № п/п | B6: Наименование муниципальной программы, национального или регионального проекта | C6: ИКЗ (Идентификационный код закупки) | D6: Код бюджетной классификации | E6: № извещения | F6: Объект закупки | G6: Н(М)ЦК | H6: Экономия | I6: Количество поданных заявок | J6: Количество заявок признанные несоответствующими | K6: СМП и СОНО | L6: № в реестре контрактов | M6: № контракта | N6: Дата заключения | O6: ИНН поставщика (подрядчика, исполнителя) | P6: Поставщик (подрядчик, исполнитель) | Q6: Цена контракта (Объем финансового обеспечения подлежащий к оплате в текущем фин. году) | R6: Остаток по контракту | S6: Сроки поставки товара (оказания услуги, выполнения работы), согласно контракта | T6: Фактическая дата поставки товара (оказания услуги, выполнения работы) и (или) предоставление документов на оплату и подписание документов о приемке | U6: Сроки оплаты согласно контракта | V6: Сумма согласно документа об исполнении контракта заказчиком | W6: Фактическая дата оплаты | X6: Изменение контракта (№, дата) | Y6: Изменение контракта (увеличение цены контракта в рублях) | Z6: Изменение контракта (уменьшение цены контракта в рублях) | AA6: Расторжение контракта (№, дата) | AB6: Сумма расторжения | AC6: Примечание
A7: 1 | B7: 2 | C7: 3 | D7: 4 | E7: 5 | F7: 6 | G7: 7 | H7: 8 | I7: 9 | J7: 10 | K7: 11 | L7: 12 | M7: 13 | N7: 14 | O7: 15 | P7: 16 | Q7: 17 | R7: 18 | S7: 19 | T7: 20 | U7: 21 | V7: 22 | W7: 23 | X7: 24 | Y7: 25 | Z7: 26 | AA7: 27 | AB7: 28 | AC7: 29
A8: 1 | C8: 193235301125823530100103000010000244 | D8: 902 0113 1210310010 244 | E8: 0818300019919000194 | F8: Поставка картриджа и тонер-картриджей | G8: 15500.01 | H8: =G8-Q8 -> 6725 | I8: 6 | J8: 0 | K8: Нет | L8: 3235301125819000079 | M8: Ф.2019.412162 | N8: 2019-07-09 | O8: 3443923035 | P8: ООО "АНАЛИТИК ЦЕНТР" | Q8: 8775.01 | R8: =Q8-V8 -> 0 | S8: В течение 20 рабочих дней со дня заключения сторонами муниципального контракта | T8: 2019-07-31 | U8: Не позднее 30 календарных дней с момента подписания Заказчиком документа о приемке выполненных работ и представленного Подрядчиком документа на оплату | V8: 8775.01 | W8: 2019-08-19 | AC8: Пример
AD9: 2

Sheet Иные конкурентные закупки
E2: Сумма начальных (максимальных) цен контрактов | G2: =SUM(G9:G9995) -> 0 | O2: Сумма заключенных контрактов | Q2: =SUM(Q9:Q9995) -> 0 | T2: Сумма средств выплаченных по контрактам | V2: =SUM(V9:V9995) -> 0 | Y2: Общая сумма расторжений по контрактам/договорам | AB2: =SUM(AB9:AB9995) -> 0
A6: № п/п | B6: Наименование муниципальной программы, национального или регионального проекта | C6: ИКЗ (Идентификационный код закупки) | D6: Код бюджетной классификации | E6: № извещения | F6: Объект закупки | G6: Н(М)ЦК | H6: Экономия | I6: Количество поданных заявок | J6: Количество заявок признанные несоответствующими | K6: СМП и СОНО | L6: № в реестре контрактов | M6: № контракта | N6: Дата заключения | O6: ИНН поставщика (подрядчика, исполнителя) | P6: Поставщик (подрядчик, исполнитель) | Q6: Цена контракта | R6: Остаток по контракту | S6: Сроки поставки товара (оказания услуги, выполнения работы), согласно контракта | T6: Фактическая дата поставки товара (оказания услуги, выполнения работы) и (или) предоставление документов на оплату и подписание документов о приемке | U6: Сроки оплаты согласно контракта | V6: Сумма согласно документа об исполнении контракта заказчиком | W6: Фактическая дата оплаты | X6: Изменение контракта (№, дата) | Y6: Изменение контракта (увеличение цены контракта в рублях) | Z6: Изменение контракта (уменьшение цены контракта в рублях) | AA6: Расторжение контракта (№, дата) | AB6: Сумма расторжения | AC6: Примечание
A7: 1 | B7: 2 | C7: 3 | D7: 4 | E7: 5 | F7: 6 | G7: 7 | H7: 8 | I7: 9 | J7: 10 | K7: 11 | L7: 12 | M7: 13 | N7: 14 | O7: 15 | P7: 16 | Q7: 17 | R7: 18 | S7: 19 | T7: 20 | U7: 21 | V7: 22 | W7: 23 | X7: 24 | Y7: 25 | Z7: 26 | AA7: 27 | AB7: 28 | AC7: 29
A8: 1 | C8: 193235301125823530100103000010000244 | D8: 902 0113 1210310010 244 | E8: 0818300019919000194 | F8: Поставка картриджа и тонер-картриджей | G8: 15500.01 | H8: =G8-Q8 -> 6725 | I8: 6 | J8: 0 | K8: Нет | L8: 3235301125819000079 | M8: Ф.2019.412162 | N8: 2019-07-09 | O8: 3443923035 | P8: ООО "АНАЛИТИК ЦЕНТР" | Q8: 8775.01 | R8: =Q8-V8 -> 0 | S8: В течение 20 рабочих дней со дня заключения сторонами муниципального контракта | T8: 2019-07-31 | U8: Не позднее 30 календарных дней с момента подписания Заказчиком документа о приемке выполненных работ и представленного Подрядчиком документа на оплату | V8: 8775.01 | W8: 2019-08-19 | AC8: Пример
AD9: 2

Sheet Настройки (hidden)
A1: 158 | B1: 39 | C1: 9 | D1: Ед. поставщик п.4 ч.1 | F1: Index | G1: Index | H1: Index | I1: Index | J1: Index | K1: Index
A2: TekStrokaP4 | B2: TekNomerP4 | C2: NachStrokaP4 | F2: 39 | G2: 0 | H2: 0 | I2: 0 | J2: 0 | K2: 0
F3: Index+1 | G3: Index+1 | H3: Index+1 | I3: Index+1 | J3: Index+1 | K3: Index+1
A4: 8 | B4: 0 | C4: 9 | D4: Ед. поставщик п.5 ч.1 | F4: 40 | G4: 0 | H4: 0 | I4: 0 | J4: 0 | K4: 0
A5: TekStrokaP5 | B5: TekNomerP5 | C5: NachStrokaP5
A7: 8 | B7: 0 | C7: 9 | D7: Ед.поставщик за искл. п.4,5 ч.1
A8: TekStrokaSt93 | B8: TekNomerSt93 | C8: NachStrokaSt93
A10: 8 | B10: 0 | C10: 9 | D10: Состоявшиеся аукционы
A11: TekStrokaSEA | B11: TekNomerSEA | C11: NachStrokaSEA
A13: 8 | B13: 0 | C13: 9 | D13: Несостоявшиеся аукционы
A14: TekStrokaNEA | B14: TekNomerNEA | C14: NachStrokaNEA
A16: 8 | B16: 0 | C16: 9 | D16: Иные конкурентные закупки
A17: TekStrokaIKZ | B17: TekNomerIKZ | C17: NachStrokaIKZ
